Cogmind - Beta 14 @@@ ROGUE MODE // 2024.10.19 @ 11:30:51 Player: Some Pennies Result: Destroyed by D-53 Grenadier with Mini Grenade Launcher Performance ------------- Evolutions (0) 0 Regions Visited (2) 400 Robots Destroyed (46) 230 Value Destroyed (957) 957 Prototype IDs (0) 0 Alien Tech Used (0) 0 Bonus (0) 0 TOTAL SCORE: 1587 Bonus ------- None Cogmind --------- Core Integrity 0/250 Matter 152/300 Energy 168/250 System Corruption 0% Temperature Cool (1) Movement Treading (480) Ox4 Location -10/Mines Parts ------- > --- POWER (1) -------- Ion Engine > --- PROPULSION (2) --- Light Treads Aluminum Leg > --- UTILITY (2) ------ Huge Storage Unit Improved Terrain Scanner > --- WEAPON (2) ------- Beam Cannon Assault Rifle > --- INVENTORY (25) --- Ion Engine Aluminum Leg Heat Sink Heat Sink Medium Storage Unit Weight Redist. System Signal Interpreter Seismic Detector Transport Network Coupler ECM Suite Hacking Suite Bomb Drone Bay Beam Cannon Grenade Launcher Datajack Mining Laser Peak State ------------ > --- POWER ------------ Ion Engine > --- PROPULSION ------- Light Treads Light Treads > --- UTILITY ---------- Huge Storage Unit Improved Terrain Scanner > --- WEAPON ----------- Assault Rifle Assault Rifle > --- INVENTORY -------- Ion Engine Aluminum Leg Aluminum Leg Heat Sink Heat Sink Medium Storage Unit Weight Redist. System Signal Interpreter Seismic Detector Transport Network Coupler ECM Suite Hacking Suite Bomb Drone Bay Beam Cannon Beam Cannon Assault Rifle Grenade Launcher Datajack Mining Laser [Rating: 12] Favorites ----------- Power Ion Engine Engine Ion Engine Propulsion Light Treads Treads Light Treads Leg Aluminum Leg Utility Heat Sink Device Heat Sink Storage Huge Storage Unit Protection Light Armor Plating Weapon Assault Rifle Energy Gun Small Laser Energy Cannon Beam Cannon Ballistic Gun Assault Rifle Launcher Grenade Launcher Build | -11 -10 -10 ------- Run | Yrd Mat Min Slots Evolved . | . . . Power . | . . . Propulsion . | . . . Utility . | . . . Weapon . | . . . Parts Attached 37 | 8 20 9 Power 4 | 2 2 . Engine 4 | 2 2 . Core . | . . . Reactor . | . . . Propulsion 4 | 2 1 1 Treads 3 | 2 1 . Leg 1 | . . 1 Wheel . | . . . Hover . | . . . Flight . | . . . Utility 8 | 2 4 2 Device 4 | 1 2 1 Storage 3 | 1 2 . Processor . | . . . Hackware . | . . . Protection 1 | . . 1 Artifact . | . . . Weapon 21 | 2 13 6 Energy Gun 2 | 1 1 . Energy Cannon 3 | . 2 1 Ballistic Gun 10 | 1 6 3 Ballistic Cannon . | . . . Launcher 6 | . 4 2 Special Weapon . | . . . Impact Weapon . | . . . Slashing Weapon . | . . . Piercing Weapon . | . . . Special Melee Weapon . | . . . Unidentified Prototypes . | . . . Parts Lost 10 | . 5 5 Power 2 | . 2 . Propulsion 2 | . 1 1 Utility 2 | . 1 1 Weapon 4 | . 1 3 Highest Loss Streak 5 | . 2 5 To Critical Strikes . | . . . Average Slot Usage (%) 99 | . 99 99 Engine 13 | . 13 14 Treads 27 | . 28 27 Device 11 | . 13 7 Storage 14 | . 14 14 Protection 2 | . . 5 Energy Gun 2 | . 4 . Energy Cannon 3 | . 5 . Ballistic Gun 21 | . 17 27 Peak Build Rating 12 | 7 9 12 Average Rating 8 | 5 8 10 On Entrance 5 | . 7 9 Naked Turns . | . . . Heaviest Build 94 | 13 90 94 Greatest Support 40 | 40 40 40 Greatest Overweight (x) 2 | . 2 2 Average Overweight (x) . | . . 2 Largest Inventory Capacity 25 | 8 25 25 Average Capacity 18 | 7 16 25 Most Carried 22 | 5 17 22 Average Carried 13 | 2 10 20 Final Capacity 25 | 8 25 25 Final Carried 17 | 4 17 17 Class Distribution -------------------- 100% | Mutant Dominant Class ---------------- Mutant | -10/Materials Mutant | -10/Mines Resources | -11 -10 -10 ----------- Run | Yrd Mat Min Matter Collected 906 | 297 487 122 Remotely . | . . . Salvage Created 1393 | 161 988 244 Parts 90 | 12 58 20 Haulers Intercepted 2 | . 2 . Recyclers Shooed 6 | 2 3 1 Parts Field Recycled . | . . . Retrieved Matter . | . . . Parts Self-Destructed . | . . . Prevented . | . . . Kills | -11 -10 -10 ------- Run | Yrd Mat Min Combat Hostiles Destroyed 31 | . 20 11 Guns 7 | . 4 3 Cannons 6 | . 6 . AOE 18 | . 10 8 Classes Destroyed 10 | 2 6 2 Worker 2 | . 2 . Tunneler 7 | 4 . 3 Hauler 2 | . 2 . Recycler 5 | 1 3 1 Operator 3 | . 3 . Watcher 1 | . 1 . Swarmer 6 | . 3 3 Grunt 19 | . 17 2 Demolisher 1 | . . 1 Assembled 5 | . . 5 Best Kill Streak 6 | 4 6 5 Combat Bots Only 5 | . 5 5 Max Kills in Single Turn 3 | 1 2 3 Gunslinging . | . . . Exploded 3 | . 2 3 Melee . | . . . Uniques/NPCs Destroyed . | . . . Combat | -11 -10 -10 -------- Run | Yrd Mat Min Hostile Shots Fired 150 | . 86 64 Missed 39 | . 23 16 Damage Taken 1634 | . 810 824 Core 263 | . 87 176 Absorbed by Shields . | . . . Regen/Repaired (Parts) 48 | . 48 . Core Remaining (%) 100 | 100 . . Volleys Fired 121 | 17 73 31 Largest 2 | 2 2 2 Hottest 100 | 60 100 80 Shots Fired 219 | 34 129 56 Gun 153 | 34 72 47 Cannon 43 | . 40 3 Launcher 23 | . 17 6 Special . | . . . Kinetic 117 | 17 53 47 Thermal 79 | 17 59 3 Explosive 23 | . 17 6 Electromagnetic . | . . . Robot Hit Streak 28 | 7 28 11 Robot Miss Streak 3 | 2 3 2 Penetration Max . | . . . Secondary Targets . | . . . Shots Hit Robots 154 | 24 88 42 Core Hits 84 | 7 46 31 Critical Kills 1 | . . 1 Critical Parts Destroyed . | . . . Critical Strikes 1 | . . 1 Destroy 1 | . . 1 Melee Attacks . | . . . Impact . | . . . Slashing . | . . . Piercing . | . . . Sneak Attacks . | . . . Combat Hostiles . | . . . Follow-up Attacks . | . . . Damage Inflicted 3348 | 230 1995 1123 Guns 1271 | 230 573 468 Cannons 614 | . 597 17 Explosions 1463 | . 825 638 Melee . | . . . Ramming . | . . . Kinetic 944 | 88 388 468 Thermal 941 | 142 782 17 Explosive 1463 | . 825 638 Electromagnetic . | . . . Impact . | . . . Slashing . | . . . Piercing . | . . . Highest Corruption . | . . . Average Corruption . | . . . Corruption Purged . | . . . Corruption Blocked . | . . . Overload Shots . | . . . Overflow Damage 55 | . 19 36 Projectiles 11 | . . 11 Explosions 44 | . 19 25 Melee . | . . . Knockbacks . | . . . Impact . | . . . Kinetic . | . . . Secondary . | . . . Self-Inflicted Damage 75 | . 60 15 Shots 4 | . 3 1 Rammed . | . . . Targets Rammed . | . . . Kicked . | . . . Crushed . | . . . Highest Temperature 77 | 40 77 6 Average Temperature 18 | 17 19 3 Received Heat Transfer 450 | . 381 69 Siege Activations . | . . . Robots Corrupted . | . . . Combat Hostiles . | . . . Parts Fried . | . . . Impact Corruptions . | . . . Robots Melted . | . . . Combat Hostiles . | . . . Parts Melted 4 | 1 3 . Heat Transferred 2008 | 325 1646 37 Parts Sabotaged . | . . . Parts Stolen . | . . . Parts Stripped . | . . . Power Chain Reactions . | . . . Alert | -11 -10 -10 ------- Run | Yrd Mat Min Peak Influence 351 | 25 351 132 Initial 72 | . 16 72 Average 142 | 12 214 39 Maximum Alert Level 1 | . 1 . Low Security (%) 63 | 100 38 100 Level 1 36 | . 61 . Level 2 . | . . . Level 3 . | . . . Level 4 . | . . . Level 5 . | . . . High Security . | . . . Max Security . | . . . Squads Dispatched 6 | . 6 . Investigation 4 | . 4 . Extermination . | . . . Reinforcement 2 | . 2 . Assault . | . . . Garrison . | . . . Intercept . | . . . Searches Triggered . | . . . Construction Impeded . | . . . Haulers Reinforced . | . . . Active Scanning Responses . | . . . Cargo Convoy Interrupts . | . . . Stealth | -11 -10 -10 --------- Run | Yrd Mat Min Distress Signals 1 | . 1 . Communications Jammed . | . . . Distress Signals . | . . . Times Spotted 47 | . 28 19 Peak Tracking Total 9 | . 4 9 Tactical Retreats 1 | . . 1 Traps | -11 -10 -10 ------- Run | Yrd Mat Min Traps Triggered 1 | . 1 . Indirectly . | . . . Trap Hack Attempts . | . . . Triggered . | . . . Disarmed . | . . . Reprogrammed . | . . . Reused . | . . . Traps Extracted . | . . . Installed . | . . . Triggered . | . . . Machines | -11 -10 -10 ---------- Run | Yrd Mat Min Machines Disabled 1 | . 1 . Max in Single Turn 1 | . 1 . Machines Repaired . | . . . Machines Dismantled . | . . . Machines Sabotaged . | . . . Overloaded Fab Kills . | . . . Hacking | -11 -10 -10 --------- Run | Yrd Mat Min Machines Accessed 11 | . 9 2 Terminals 7 | . 6 1 Fabricators . | . . . Repair Stations 1 | . 1 . Recycling Units 2 | . 2 . Scanalyzers . | . . . Garrison Access . | . . . Total Hacks 31 | . 24 7 Successful 16 | . 13 3 Failed 14 | . 10 4 Catastrophic 1 | . 1 . Database Lockouts 1 | . 1 . Manual 23 | . 17 6 Terminals 23 | . 17 6 Fabricators . | . . . Repair Stations 4 | . 4 . Recycling Units 3 | . 3 . Scanalyzers . | . . . Garrison Access . | . . . Terminal Hacks 7 | . 4 3 Part Schematic 1 | . . 1 Robot Analysis 2 | . 1 1 Open Door 1 | . . 1 Terminal Index 1 | . 1 . Hauler Manifests 1 | . 1 . Zone Layout 1 | . 1 . Fabricator Hacks . | . . . Repair Station Hacks 2 | . 2 . Scan Component 1 | . 1 . Repair 1 | . 1 . Recycling Unit Hacks . | . . . Scanalyzer . | . . . Garrison Access Hacks . | . . . Unauthorized Hacks 7 | . 7 . Terminals 5 | . 5 . Skim 5 | . 5 . Fabricators . | . . . Repair Stations . | . . . Recycling Units 2 | . 2 . Tunnel 2 | . 2 . Scanalyzers . | . . . Garrison Access . | . . . Data Cores Recovered 1 | . 1 . Used 1 | . 1 . Hacking Detections 8 | . 7 1 Full Trace Events 3 | . 3 . Feedback Events . | . . . Feedback Blocked . | . . . Robot Schematics Acquired . | . . . Robots Built . | . . . Authchips . | . . . Time . | . . . Total Robot Build Rating . | . . . Part Schematics Acquired 1 | . . 1 Parts Built . | . . . Authchips . | . . . Time . | . . . Total Part Build Rating . | . . . Parts Repaired 1 | . 1 . Time 26 | . 26 . Parts Recycled . | . . . Recycled Matter . | . . . Retrieved Matter . | . . . Retrieved Components . | . . . Parts Scanalyzed . | . . . Part Schematics Acquired . | . . . Parts Damaged . | . . . Bothacking | -11 -10 -10 ------------ Run | Yrd Mat Min Used RIF Installer . | . . . Robots Hacked . | . . . Non-combat . | . . . Combat . | . . . Robot Hacks Applied . | . . . Relay Couplers Released . | . . . Fabnet Peak Effective % . | . . . Robots Rewired . | . . . Allies Hacked . | . . . Hacks Repelled . | . . . Allies | -11 -10 -10 -------- Run | Yrd Mat Min Total Allies . | . . . Largest Group . | . . . Highest-Rated Group . | . . . Highest-Rated Ally . | . . . Total Orders . | . . . Ally Attacks . | . . . Total Damage . | . . . Kills . | . . . Allies Corrupted . | . . . Allies Melted . | . . . Intel | -11 -10 -10 ------- Run | Yrd Mat Min Robot Analysis Total 2 | . 1 1 Derelict Logs Recovered 1 | . . 1 Drone Launches . | . . . Drone Recoveries . | . . . Exploration | -11 -10 -10 ------------- Run | Yrd Mat Min Turns Passed 3444 | 187 2055 1202 Spaces Moved 1237 | 83 810 344 Core 11 | 11 . . Treads 1226 | 72 810 344 Legs . | . . . Wheels . | . . . Hover . | . . . Flight . | . . . Fastest Speed 50 | 50 160 320 Average Speed 231 | 145 202 320 Slowest Speed 320 | 160 320 320 Overloaded Moves . | . . . Propulsion Burnouts . | . . . Robots Hopped . | . . . Cave-ins Triggered . | . . . Exploration Rate (%) 53 | 7 97 56 Regions Visited 2 Branch Regions 1 Pre-discovered Areas 2 | . 2 . Known Exits Taken . | . . . Unknown Exits Taken 2 | 1 1 . Scrap Searched 2 | . . 2 Spaces Dug 5 | . . 5 Terrain Destroyed 124 | . 73 51 Melee . | . . . Projectile . | . . . AOE 124 | . 73 51 Terrain Rammed . | . . . Walls Destroyed . | . . . Machines Disabled . | . . . Actions | -11 -10 -10 --------- Run | Yrd Mat Min Total 1601 | 118 1094 389 Wait 158 | . 157 1 Move 1235 | 82 809 344 Hop . | . . . Pick Up 41 | 11 26 4 Fast Attach 1 | . 1 . Attach 17 | 7 5 5 Detach . | . . . Swap 19 | 1 14 4 Drop 9 | . 9 . Fire 121 | 17 73 31 Melee . | . . . Ram . | . . . Kick . | . . . Crush . | . . . Escape Stasis . | . . . Rewire . | . . . Trap . | . . . Miscellaneous . | . . . Route ------- -11/Scrapyard -10/Materials (discovered 4 exits: [*Mat x3] / *Min) -10/Mines (discovered 2 exits: [*Mat x2]) History --------- Turn | Location | Event 2 | -11/Scrapyard | Met Revision 17 15 | -11/Scrapyard | Discovered new exit (range 15) 188 | -11/Scrapyard | Entered Materials 303 | -10/Materials | Build established: Mutant 838 | -10/Materials | Discovered new exit (range 4) 845 | -10/Materials | Central database locked down 993 | -10/Materials | Repaired Grenade Launcher 1227 | -10/Materials | Discovered new exit (range 15) 1474 | -10/Materials | Discovered new exit (range 16) 2160 | -10/Materials | Discovered new exit (range 9) 2243 | -10/Materials | Entered Mines 2350 | -10/Mines | Received a Rocket Launcher from a helpful Derelict 2408 | -10/Mines | Discovered new exit (range 9) 2628 | -10/Mines | Learned Materials non-interactive machine intel 2661 | -10/Mines | Found the Drone Emporium 2683 | -10/Mines | Found Prototype Device 3342 | -10/Mines | Discovered new exit (range 15) 3374 | -10/Mines | Assembled infested the area 3394 | -10/Mines | Core integrity fell below 50% 3435 | -10/Mines | Core integrity fell below 20% 3445 | -10/Mines | Destroyed by D-53 Grenadier with Mini Grenade Launcher Last Messages --------------- 03402_ U-05 Engineer lays Concrete. 03402_ U-05 Engineer destroyed. 03409_ The unstable cave ceiling collapses. 03409_ T-07 Excavator destroyed. 03409_ K-01 Serf collects debris. 03415_ Rocket Launcher destroyed. 03416_ The unstable cave ceiling collapses. 03417_ Lgt. Armor Plating destroyed. 03424_ as-86040 destroyed. 03424_ as-97794 destroyed. 03426_ as-28218 destroyed. 03426_ as-54525 destroyed. 03430_ as-01403 destroyed. 03431_ as-80047 destroyed. 03432_ D-53 Grenadier destroyed. 03434_ Assault Rifle destroyed. 03434_ Lgt. Treads destroyed. 03437_ Destroyed Shock Absorption System. 03438_ The unstable cave ceiling collapses. 03443_ Assault Rifle destroyed. Map ----- +----------------------------------------------------+ | ??# """ #?# #### #??## ### #?? | | ??# #?####??# #??# ##?## #?? | | ??# """ """ #???????# #??# ##????# #?? | | ??# """ """ #???????# #??# ##?????###?? | | ??# """ """ #???????# #### ##????????? | | ??# #???????# ##???????? | | ??# #???????# ### #???????? | | ??############???????# #?## #???????? | | ?????????????????????# #??## ##???????? | | ?????????????????????# #??## #????????? | | ???????????????????### #### ##???????? | | ??????????????????## ###?????? | | ?????????????????## ###???? | | ????????###?????## #???? | | ????##### #???## #???? | | ????? #### ##### #???? | | ????????# ##???## ##???? | | ??????????# #?????# ##???? | | ??????????## ##?????## ##???? | | ???????????# ##???????### ##??? | | ???????????# % #######????## ##?? | | ??????????##| # ##????# #?? | | ?????????##%! d ##???## #?? | | ????????? #????#####?? | | ??????# ##?????????? | | ??????# @ #???#?????? | | ????# #????????? | | ???# a #???????? | | ???# ## #???????? | | ???# ###?#### < ##???????? | | ??? % #???????## ###????????? | | ???# # ????????# ###??????????? | | ???? % ??????????# ##????????????? | | ???? $ ?????????? ? ???????????? | | ??????# #??????????# ????????????? | | ???????????????????## ##???????????? | | ????????????????????## #??????#?????? | | ?????????????????????## #????????????? | | ??????????????????????### ##????????????? | | ?????????????????????????##??????????????? | | ?????????????????????????????????????????? | | ?????????????????????????????????????????? | | ?????????????????????????????????????????? | | ?????????????????????????????????????????? | | ?????????????????????????????????????????? | | | | | | | | | | | +----------------------------------------------------+ Best States ------------- Heat Dissipation 35 Energy Generation 10 Energy Capacity 250 Matter Stores 300 Matter Capacity 300 Sight Range 16 Terrain Scan Range 16 Terrain Scan Density 10 Armor Coverage 150 Evasion (%) 50 Recoil Reduction 2 Item Schematics ----------------- Huge Storage Unit | -10/Mines | Hacked Robot Schematics ------------------ None Fabricated ------------ Nothing Alien Tech Used ----------------- None Achievements -------------- None Challenges ------------ None Game ------ Seed AdvancedSwordHumpback Manual? 0 Play Time 00:14:46 Cumulative 380.6 hours Start 2024.10.19 @ 11:16:42 End 2024.10.19 @ 11:30:51 Sessions 1 Manual Loads 0 Difficulty Rogue Special Mode None Game No. 270 Rogue 265 Adventurer 5 Explorer 0 Win Type - Total 9 Types 4/0/5/0/0/0/0/0/0 Lore% 72 Gallery% 87 Achievement% 72 Wizard Run 0 Options --------- Layout 2 ASCII 0 Keyboard 0 Movement Mouse Keybinds 0 Fullscreen 2 Font 24/Smallcaps Map View 50x44 Zoom Use 0% Tactical HUD 1 Map Filters NONE Filters NONE Steam 1 RUN: e0f9937d-39c2-4546-86e2-2364cb40bf8b